fUST/lending_fUST_20250227
["ID","MTS","AMOUNT","RATE_DAILY","PERIOD"]
[354687440,1740617451336,-500.0,0.00046575,120]
[354687441,1740617451345,-500.0,0.00046575,120]
[354687442,1740617451354,-500.0,0.00046575,120]
[354687443,1740617451364,-2739.72,0.00046575,120]
[354687444,1740617451373,-684.76,0.00046575,120]
[354687445,1740617451383,-500.0,0.00046575,120]
[354687446,1740617451392,-500.0,0.00046575,120]
[354687447,1740617451401,-738.53,0.00046575,120]
[354687448,1740617451411,-561.11399611,0.00046575,120]
[354687449,1740617451420,-500.0,0.00046575,120]
[354687450,1740617451429,-500.0,0.00046575,120]
[354687451,1740617451439,-500.0,0.00046575,120]
[354687452,1740617451448,-500.0,0.00046575,120]
[354687453,1740617451458,-500.0,0.00046575,120]
[354687454,1740617451467,-500.0,0.00046575,14]
[354687455,1740617451481,-500.0,0.00046575,30]
[354687456,1740617451491,-500.0,0.00046575,120]
[354687457,1740617451501,-1320.7,0.00046575,120]
[354687458,1740617451511,-500.0,0.00046575,120]
[354687459,1740617451521,-500.0,0.00046575,120]
[354687460,1740617451531,-500.0,0.00046575,120]
[354687461,1740617451540,-614.04,0.00046575,120]
[354687462,1740617451550,-1149.22,0.00046575,120]
[354687463,1740617451560,-500.0,0.00046575,120]
[354687464,1740617451570,-500.0,0.00046575,120]
[354687465,1740617451579,-1000.0,0.00046575,120]
[354687466,1740617451588,-151.0,0.00046575,120]
[354687467,1740617451598,-501.1759548,0.00046575,120]
[354687468,1740617451607,-500.0,0.00046575,120]
[354687469,1740617451616,-500.0,0.00046575,120]
[354687470,1740617451626,-500.0,0.00046575,120]
[354687471,1740617451635,-500.0,0.00046575,120]
[354687472,1740617451644,-587.01,0.00046575,120]
[354687473,1740617451653,-500.30074184,0.00046575,120]
[354687474,1740617451662,-818.65,0.00046575,120]
[354687475,1740617451672,-627.17,0.00046575,120]
[354687476,1740617451681,-500.0,0.00046575,120]
[354687477,1740617451690,-297.16287668,0.00046575,120]
[354687478,1740617451700,-500.0,0.00046575,120]
[354687479,1740617451711,-1000.0,0.00046575,120]
[354687480,1740617451724,-1302.54,0.00046575,120]
[354687481,1740617451733,-500.0,0.00046575,120]
[354687482,1740617451743,-500.0,0.00046575,120]
[354687483,1740617451753,-1022.57,0.00046575,120]
[354687484,1740617451762,-715.25,0.00046575,120]
[354687485,1740617451772,-500.0,0.00046575,120]
[354687486,1740617451782,-500.0,0.00046575,120]
[354687487,1740617451791,-561.78,0.00046575,120]
[354687488,1740617451801,-606.25,0.00046575,120]
[354687489,1740617451810,-500.0,0.00046575,120]
[354687490,1740617451820,-1733.79,0.00046575,120]
[354687491,1740617451830,-500.0,0.00046575,120]
[354687492,1740617451839,-500.0,0.00046575,120]
[354687493,1740617451849,-500.0,0.00046575,120]
[354687494,1740617451858,-505.7337078,0.00046575,120]
[354687495,1740617451867,-500.0,0.00046575,120]
[354687496,1740617451876,-500.0,0.00046575,120]
[354687497,1740617451885,-500.0,0.00046575,120]
[354687498,1740617451894,-500.0,0.00046575,120]
[354687499,1740617451904,-500.0,0.00046575,120]
[354687500,1740617451913,-500.0,0.00046575,120]
[354687501,1740617451922,-500.0,0.00046575,120]
[354687502,1740617451931,-500.0,0.00046575,30]
[354687503,1740617451941,-447.45,0.00046575,120]
[354687504,1740617451950,-500.0,0.00046575,120]
[354687505,1740617451959,-500.0,0.00046575,120]
[354687506,1740617451968,-500.0,0.00046575,120]
[354687507,1740617451979,-151.0,0.00046575,120]
[354687508,1740617451988,-500.0,0.00046575,120]
[354687509,1740617451998,-500.0,0.00046575,120]
[354687510,1740617452007,-151.0,0.00046575,120]
[354687511,1740617452017,-500.0,0.00046575,120]
[354687512,1740617452026,-500.0,0.00046575,120]
[354687513,1740617452036,-2047.2,0.00046575,120]
[354687514,1740617452045,-500.0,0.00046575,120]
[354687515,1740617452054,-500.0,0.00046575,120]
[354687516,1740617452063,-500.0,0.00046575,120]
[354687517,1740617452072,-500.0,0.00046575,120]
[354687518,1740617452082,-500.0,0.00046575,120]
[354687519,1740617452091,-500.0,0.00046575,120]
[354687520,1740617452100,-500.0,0.00046575,120]
[354687521,1740617452110,-768.91,0.00046575,120]
[354687522,1740617452119,-500.0,0.00046575,120]
[354687523,1740617452128,-500.0,0.00046575,120]
[354687524,1740617452137,-500.0,0.00046575,120]
[354687525,1740617452146,-500.0,0.00046575,120]
[354687526,1740617452155,-500.0,0.00046575,120]
[354687527,1740617452165,-500.0,0.00046575,120]
[354687528,1740617452174,-500.0,0.00046575,120]
[354687529,1740617452183,-500.0,0.00046575,120]
[354687530,1740617452192,-500.0,0.00046575,15]
[354687531,1740617452202,-500.0,0.00046575,120]
[354687532,1740617452211,-500.0,0.00046575,120]
[354687533,1740617452223,-517.28000001,0.00046575,120]
[354687534,1740617452233,-500.0,0.00046575,120]
[354687535,1740617452242,-500.0,0.00046575,120]
[354687536,1740617452252,-500.0,0.00046575,120]
[354687537,1740617452261,-500.0,0.00046575,120]
[354687538,1740617452273,-1042.45,0.00046575,120]
[354687539,1740617452283,-500.0,0.00046575,120]
[354687540,1740617452292,-500.0,0.00046575,120]
[354687541,1740617452303,-500.0,0.00046575,120]
[354687542,1740617452313,-2459.19,0.00046575,120]
[354687543,1740617452323,-500.0,0.00046575,120]
[354687544,1740617452334,-500.0,0.00046575,120]
[354687545,1740617452346,-500.0,0.00046575,120]
[354687546,1740617452355,-500.0,0.00046575,120]
[354687547,1740617452365,-500.0,0.00046575,120]
[354687548,1740617452374,-221.06531681,0.00046575,120]
[354687549,1740617452384,-500.0,0.00046575,120]
[354687550,1740617452393,-500.0,0.00046575,120]
[354687551,1740617452402,-500.0,0.00046575,120]
[354687552,1740617452411,-500.0,0.00046575,120]
[354687553,1740617452420,-500.0,0.00046575,120]
[354687554,1740617452430,-500.0,0.00046575,120]
[354687555,1740617452440,-808.56,0.00046575,120]
[354687556,1740617452449,-500.0,0.00046575,120]
[354687557,1740617452458,-536.13676915,0.00046575,120]
[354687558,1740617452467,-500.60435038,0.00046575,120]
[354687559,1740617452480,-500.0,0.00046575,120]
[354687560,1740617452489,-500.0,0.00046575,120]
[354687561,1740617452498,-500.0,0.00046575,120]
[354687562,1740617452507,-649.45,0.00046575,120]
[354687563,1740617452517,-151.0,0.00046575,120]
[354687564,1740617452526,-500.0,0.00046575,120]
[354687565,1740617452536,-500.0,0.00046575,120]
[354687566,1740617452545,-500.0,0.00046575,120]
[354687567,1740617452554,-574.8,0.00046575,120]
[354687568,1740617452563,-500.0,0.00046575,120]
[354687569,1740617452572,-500.0,0.00046575,120]
[354687570,1740617452581,-500.0,0.00046575,120]
[354687571,1740617452590,-500.0,0.00046575,120]
[354687572,1740617452600,-500.0,0.00046575,120]
[354687573,1740617452609,-1200.2,0.00046575,120]
[354687574,1740617452618,-500.0,0.00046575,120]
[354687575,1740617452627,-500.0,0.00046575,120]
[354687576,1740617452636,-500.0,0.00046575,120]
[354687577,1740617452645,-500.80551448,0.00046575,120]
[354687578,1740617452655,-747.88,0.00046575,120]
[354687579,1740617452663,-500.0,0.00046575,120]
[354687580,1740617452673,-500.0,0.00046575,120]
[354687581,1740617452682,-500.0,0.00046575,120]
[354687582,1740617452692,-575.45,0.00046575,120]
[354687583,1740617452701,-500.0,0.00046575,120]
[354687584,1740617452711,-500.0,0.00046575,120]
[354687585,1740617452723,-500.0,0.00046575,120]
[354687586,1740617452732,-500.0,0.00046575,120]
[354687587,1740617452741,-768.7,0.00046575,120]
[354687588,1740617452751,-929.67,0.00046575,120]
[354687589,1740617452761,-500.0,0.00046575,120]
[354687590,1740617452770,-500.0,0.00046575,120]
[354687591,1740617452779,-500.0,0.00046575,120]
[354687592,1740617452788,-504.7372326,0.00046575,120]
[354687593,1740617452797,-512.36350775,0.00046575,120]
[354687594,1740617452808,-500.0,0.00046575,120]
[354687595,1740617452818,-500.0,0.00046575,120]
[354687596,1740617452828,-2431.85,0.00046575,120]
[354687597,1740617452837,-500.0,0.00046575,45]
[354687598,1740617452847,-500.0,0.00046575,120]
[354687599,1740617452856,-500.0,0.00046575,120]
[354687600,1740617452865,-500.0,0.00046575,120]
[354687601,1740617452874,-500.0,0.00046575,120]
[354687602,1740617452883,-500.0,0.00046575,120]
[354687603,1740617452893,-500.0,0.00046575,120]
[354687604,1740617452903,-400.79042522,0.00046575,120]
[354687605,1740617452912,-500.0,0.00046575,120]
[354687606,1740617452922,-500.0,0.00046575,120]
[354687607,1740617452931,-500.0,0.00046575,120]
[354687608,1740617452941,-500.0,0.00046575,120]
[354687609,1740617452950,-500.0,0.00046575,120]
[354687610,1740617452960,-500.0,0.00046575,120]
[354687611,1740617452970,-500.0,0.00046575,120]
[354687612,1740617452980,-627.77466856,0.00046575,120]
[354687613,1740617452989,-536.48,0.00046575,120]
[354687614,1740617452999,-500.0,0.00046575,120]
[354687615,1740617453009,-500.0,0.00046575,120]
[354687616,1740617453019,-500.0,0.00046575,120]
[354687617,1740617453028,-500.0,0.00046575,120]
[354687618,1740617453038,-500.0,0.00046575,120]
[354687619,1740617453047,-500.0,0.00046575,120]
[354687620,1740617453057,-500.0,0.00046575,120]
[354687621,1740617453067,-500.0,0.00046575,120]
[354687622,1740617453076,-500.0,0.00046575,120]
[354687623,1740617453085,-500.0,0.00046575,120]
[354687624,1740617453094,-515.03801973,0.00046575,120]
[354687625,1740617453103,-236.743,0.00046575,120]
[354687626,1740617453112,-500.0,0.00046575,120]
[354687627,1740617453121,-500.0,0.00046575,120]
[354687628,1740617453130,-500.0,0.00046575,120]
[354687629,1740617453139,-2491.98,0.00046575,120]
[354687630,1740617453149,-500.0,0.00046575,120]
[354687631,1740617453158,-500.4534857,0.00046575,120]
[354687632,1740617453167,-512.84091281,0.00046575,120]
[354687633,1740617453175,-500.0,0.00046575,120]
[354687634,1740617453185,-6010.88,0.00046575,120]
[354687635,1740617453194,-500.0,0.00046575,120]
[354687636,1740617453203,-500.0,0.00046575,120]
[354687637,1740617453211,-500.0,0.00046575,120]
[354687638,1740617453223,-500.0,0.00046575,120]
[354687639,1740617453232,-455.31173304,0.00046575,120]
[354687640,1740617453241,-562.73,0.00046575,120]
[354687641,1740617453250,-1791.51,0.00046575,120]
[354687642,1740617453263,-500.0,0.00046575,120]
[354687643,1740617453273,-483.994562,0.00046575,120]
[354687644,1740617453281,-500.0,0.00046575,120]
[354687645,1740617453292,-500.0,0.00046575,120]
[354687646,1740617453303,-500.0,0.00046575,120]
[354687647,1740617453312,-500.0,0.00046575,120]
[354687648,1740617453321,-483.994562,0.00046575,120]
[354687649,1740617453330,-595.55,0.00046575,120]
[354687650,1740617453340,-500.0,0.00046575,120]
[354687651,1740617453350,-213.09074272,0.00046575,120]
[354687652,1740617453359,-500.0,0.00046575,120]
[354687653,1740617453368,-500.0,0.00046575,120]
[354687654,1740617453377,-500.0,0.00046575,120]
[354687655,1740617453386,-582.16823479,0.00046575,120]
[354687656,1740617453396,-500.0,0.00046575,120]
[354687657,1740617453408,-500.0,0.00046575,120]
[354687658,1740617453420,-1108.98,0.00046575,120]
[354687659,1740617453431,-3155.97,0.00046575,120]
[354687660,1740617453442,-7854.93,0.00046575,120]
[354687661,1740617453453,-500.91253704,0.00046575,120]
[354687662,1740617453463,-500.0,0.00046575,120]
[354687663,1740617453475,-500.0,0.00046575,120]
[354687664,1740617453484,-151.0,0.00046575,120]
[354687665,1740617453493,-547.31243735,0.00046575,120]
[354687666,1740617453502,-500.0,0.00046575,120]
[354687667,1740617453511,-500.0,0.00046575,120]
[354687668,1740617453522,-500.0,0.00046575,120]
[354687669,1740617453646,-1026.77,0.00046575,120]
[354687670,1740617453655,-500.0,0.00046575,120]
[354687671,1740617453665,-500.0,0.00046575,120]
[354687672,1740617453674,-502.50529484,0.00046575,120]
[354687673,1740617453683,-500.0,0.00046575,120]
[354687674,1740617453691,-500.0,0.00046575,120]
[354687675,1740617453701,-500.0,0.00046575,120]
[354687676,1740617453710,-990.82,0.00046575,120]
[354687677,1740617453719,-758.1,0.00046575,120]
[354687678,1740617453729,-1000.0,0.00046575,20]
[354687679,1740617453738,-2241.57,0.00046575,120]
[354687680,1740617453748,-7623.2,0.00046575,120]
[354687681,1740617453758,-151.0,0.00046575,120]
[354687682,1740617453767,-500.0,0.00046575,120]
[354687683,1740617453777,-500.0,0.00046575,120]
[354687684,1740617453787,-200.0,0.00046575,7]
[354687685,1740617453797,-500.0,0.00046575,120]
[354687686,1740617453806,-500.0,0.00046575,120]
[354687687,1740617453815,-500.0,0.00046575,120]
[354687688,1740617453824,-500.0,0.00046575,120]
[354687689,1740617453834,-500.0,0.00046575,120]
[354687690,1740617453843,-500.0,0.00046575,120]
[354687691,1740617453853,-500.0,0.00046575,120]
[354687692,1740617453863,-151.0,0.00046575,120]
[354687693,1740617453873,-502.34656903,0.00046575,120]
[354687694,1740617453883,-503.72364398,0.00046575,120]
[354687695,1740617453892,-505.46744743,0.00046575,120]
[354687696,1740617453901,-500.0,0.00046575,120]
[354687697,1740617453910,-500.0,0.00046575,120]
[354687698,1740617453920,-500.0,0.00046575,120]
[354687699,1740617453930,-500.0,0.00046575,120]
[354687700,1740617453939,-500.0,0.00046575,120]
[354687701,1740617453949,-151.0,0.00046575,3]
[354687702,1740617453959,-500.0,0.00046575,120]
[354687703,1740617453969,-500.0,0.00046575,120]
[354687704,1740617453979,-625.87,0.00046575,120]
[354687705,1740617453988,-500.0,0.00046575,120]
[354687706,1740617453998,-500.0,0.00046575,120]
[354687707,1740617454007,-500.0,0.00046575,120]
[354687708,1740617454017,-505.60370436,0.00046575,120]
[354687709,1740617454026,-500.0,0.00046575,120]
[354687710,1740617454035,-282.05821622,0.00046575,120]
[354687711,1740617454045,-500.0,0.00046575,120]
[354687712,1740617454055,-500.0,0.00046575,120]
[354687713,1740617454065,-591.27,0.00046575,120]
[354687714,1740617454074,-500.0,0.00046575,120]
[354687715,1740617454083,-500.0,0.00046575,120]
[354687716,1740617454092,-500.0,0.00046575,120]
[354687717,1740617454101,-558.58,0.00046575,120]
[354687718,1740617454111,-500.0,0.00046575,30]
[354687719,1740617454120,-500.0,0.00046575,120]
[354687720,1740617454130,-293.575532,0.00046575,120]
[354687721,1740617454139,-500.0,0.00046575,120]
[354687722,1740617454148,-538.84,0.00046575,120]
[354687723,1740617454157,-500.0,0.00046575,120]
[354687724,1740617454166,-500.0,0.00046575,120]
[354687725,1740617454175,-566.64,0.00046575,30]
[354687726,1740617454185,-500.0,0.00046575,120]
[354687727,1740617454194,-500.0,0.00046575,120]
[354687728,1740617454203,-500.0,0.00046575,120]
[354687729,1740617454212,-500.0,0.00046575,120]
[354687730,1740617454222,-500.0,0.00046575,120]
[354687731,1740617454231,-500.0,0.00046575,120]
[354687732,1740617454240,-500.0,0.00046575,120]
[354687733,1740617454249,-1910.25,0.00046575,120]
[354687734,1740617454259,-3044.46,0.00046575,120]
[354687735,1740617454272,-500.0,0.00046575,120]
[354687736,1740617454281,-505.8874119,0.00046575,120]
[354687737,1740617454292,-500.0,0.00046575,120]
[354687738,1740617454302,-500.0,0.00046575,120]
[354687739,1740617454311,-500.0,0.00046575,120]
[354687740,1740617454322,-513.9105948,0.00046575,120]
[354687741,1740617454331,-175.21914718,0.00046575,120]
[354687742,1740617454343,-500.0,0.00046575,120]
[354687743,1740617454352,-896.74,0.00046575,120]
[354687744,1740617454361,-1337.81,0.00046575,120]
[354687745,1740617454370,-500.0,0.00046575,120]
[354687746,1740617454380,-698.26,0.00046575,120]
[354687747,1740617454389,-500.0,0.00046575,120]
[354687748,1740617454398,-151.0,0.00046575,120]
[354687749,1740617454407,-1622.32,0.00046575,120]
[354687750,1740617454416,-500.0,0.00046575,120]
[354687751,1740617454426,-1053.35,0.00046575,120]
[354687752,1740617454436,-500.0,0.00046575,120]
[354687753,1740617454445,-500.0,0.00046575,120]
[354687754,1740617454454,-500.0,0.00046575,120]
[354687755,1740617454464,-500.0,0.00046575,120]
[354687756,1740617454474,-4114.29,0.00046575,120]
[354687757,1740617454483,-500.0,0.00046575,120]
[354687758,1740617454492,-500.0,0.00046575,120]
[354687759,1740617454502,-44131.2017911,0.00046575,7]
[354687840,1740618631949,-311.51684575,0.00033,30]
[354687854,1740618632065,-238.48315425,0.00033,30]
[354687856,1740618632075,-160.0,0.00036096,2]
[354687858,1740618632084,-264.11684586,0.00036137,30]
[354687998,1740618637691,-53.31446916,0.00036137,30]
[354687999,1740618637705,-10000.0,0.00036138,2]
[354688000,1740618637714,-11634.94111298,0.00036465,99]
[354688001,1740618637723,-2807.8315723,0.00036565,2]
[354688002,1740618637732,-544.01447275,0.000369,7]
[354688003,1740618637743,-169.4629032,0.00038676,2]
[354688004,1740618637754,-160.0,0.00038707,3]
[354688005,1740618637765,-544.01447259,0.000389,8]
[354688006,1740618637774,-160.0,0.00039442,4]
[354688007,1740618637783,-634.8597066,0.00039442,2]
[354688008,1740618637793,-11634.94111294,0.0003979,119]
[354688009,1740618637805,-160.0,0.00040178,5]
[354688010,1740618637817,-482.5967905,0.00040889,2]
[354688011,1740618637827,-544.01447259,0.000409,8]
[354688012,1740618637837,-160.0,0.00040914,6]
[354688013,1740618637846,-160.0,0.00041649,7]
[354688014,1740618637855,-500.0,0.00042224,2]
[354688015,1740618637865,-24900.0,0.0004225,2]
[354688016,1740618637874,-160.0,0.00042385,8]
[354688017,1740618637883,-500.0,0.00042772,2]
[354688018,1740618637893,-544.01447259,0.000429,9]
[354688019,1740618637902,-562.242,0.0004308,66]
[354688020,1740618637911,-11634.94111294,0.00043114,120]
[354688021,1740618637920,-160.0,0.0004312,9]
[354688022,1740618637930,-500.0,0.0004332,2]
[354688023,1740618637939,-160.0,0.00043856,10]
[354688024,1740618637949,-160.0,0.00044592,11]
[354688025,1740618637960,-544.01447259,0.000449,10]
[354688026,1740618637969,-13161.98744818,0.00044922,2]
[354688027,1740618637978,-727.3,0.00045,120]
[354688028,1740618637988,-50000.0,0.00045,120]
[354688029,1740618637999,-160.0,0.00045327,12]
[354688030,1740618638009,-29790.76,0.00045999,120]
[354688031,1740618638019,-20000.0,0.00046,8]
[354688032,1740618638028,-200.0,0.00046,2]
[354688033,1740618638039,-160.0,0.00046063,13]
[354688034,1740618638050,-3617.5118219,0.00046076,2]
[354688035,1740618638061,-500.0,0.00046099,120]
[354688036,1740618638070,-500.0,0.00046099,2]
[354688037,1740618638080,-500.0,0.00046099,120]
[354688038,1740618638089,-220.0,0.00046099,120]
[354688039,1740618638098,-155.09401431,0.00046099,120]
[354688040,1740618638108,-477.5305845,0.00046099,2]
[354688041,1740618638117,-71703.08664651,0.000461,120]
[354688042,1740618638127,-11634.94111294,0.00046439,120]
[354688043,1740618638136,-2375.2218425,0.00046449,4]
[354688044,1740618638145,-3000.0,0.00046475,2]
[354688045,1740618638156,-10000.0,0.000465,90]
[354688046,1740618638165,-1000.0,0.000465,120]
[354688047,1740618638175,-5000.0,0.0004657,2]
[354688048,1740618638185,-5000.0,0.0004657,30]
[354688049,1740618638195,-500.0,0.00046573,10]
[354688050,1740618638205,-500.0,0.00046573,7]
[354688051,1740618638214,-500.0,0.00046573,7]
[354688052,1740618638223,-500.0,0.00046573,10]
[354688053,1740618638233,-500.0,0.00046573,10]
[354688054,1740618638242,-500.0,0.00046573,10]
[354688055,1740618638251,-500.0,0.00046573,10]
[354688056,1740618638260,-151.07408773,0.00046573,2]
[354688057,1740618638269,-312.21423528,0.00046573,10]
[354688058,1740618638278,-500.6890078,0.00046573,7]
[354688059,1740618638287,-500.0,0.00046573,10]
[354688060,1740618638458,-318.80005887,0.00046574,120]
[354688061,1740618638468,-500.0,0.00046574,31]
[354688062,1740618638478,-500.0,0.00046574,120]
[354688063,1740618638487,-262.39658506,0.00046574,120]
[354688064,1740618638496,-273.16548371,0.00046574,120]
[354688065,1740618638505,-500.0,0.00046574,120]
[354688066,1740618638514,-500.0,0.00046574,31]
[354688067,1740618638524,-579.17818866,0.00046574,120]
[354688068,1740618638535,-367.86856581,0.00046574,31]
[354688069,1740618638545,-500.0,0.00046574,31]
[354688070,1740618638554,-500.0,0.00046574,31]
[354688071,1740618638563,-500.0,0.00046574,31]
[354688072,1740618638571,-500.0,0.00046574,120]
[354688073,1740618638580,-500.0,0.00046574,120]
[354688074,1740618638589,-191.21583859,0.00046574,120]
[354688075,1740618638599,-500.0,0.00046575,120]
[354688076,1740618638608,-500.0,0.00046575,120]
[354688077,1740618638617,-500.0,0.00046575,120]
[354688078,1740618638626,-500.0,0.00046575,120]
[354688079,1740618638634,-500.0,0.00046575,120]
[354688080,1740618638643,-500.0,0.00046575,120]
[354688081,1740618638657,-500.0,0.00046575,120]
[354688082,1740618638667,-500.0,0.00046575,120]
[354688083,1740618638676,-585.66060771,0.00046575,120]
[354688084,1740618638687,-500.0,0.00046575,120]
[354688085,1740618638696,-505.82746448,0.00046575,120]
[354688086,1740618638707,-554.4851128,0.00046575,120]
[354688087,1740618638717,-500.0,0.00046575,120]
[354688088,1740618638726,-500.0,0.00046575,120]
[354688089,1740618638735,-500.0,0.00046575,120]
[354688090,1740618638744,-500.0,0.00046575,120]
[354688091,1740618638754,-500.0,0.00046575,120]
[354688092,1740618638764,-500.0,0.00046575,120]
[354688093,1740618638773,-500.0,0.00046575,120]
[354688094,1740618638782,-500.0,0.00046575,120]
[354688095,1740618638792,-500.0,0.00046575,120]
[354688096,1740618638801,-500.0,0.00046575,120]
[354688097,1740618638811,-500.0,0.00046575,120]
[354688098,1740618638820,-500.0,0.00046575,120]
[354688099,1740618638829,-500.0,0.00046575,120]
[354688100,1740618638838,-500.0,0.00046575,120]
[354688101,1740618638847,-500.0,0.00046575,120]
[354688102,1740618638856,-500.0,0.00046575,120]
[354688103,1740618638866,-500.0,0.00046575,120]
[354688104,1740618638875,-527.68,0.00046575,120]
[354688105,1740618638884,-502.01208196,0.00046575,120]
[354688106,1740618638893,-500.0,0.00046575,120]
[354688107,1740618638903,-300.0,0.00046575,120]
[354688108,1740618638912,-500.0,0.00046575,120]
[354688109,1740618638922,-500.0,0.00046575,120]
[354688110,1740618638931,-1001.94,0.00046575,120]
[354688111,1740618638940,-500.0,0.00046575,120]
[354688112,1740618638950,-500.0,0.00046575,120]
[354688113,1740618638961,-500.0,0.00046575,120]
[354688114,1740618638970,-500.0,0.00046575,120]
[354688115,1740618638979,-500.0,0.00046575,120]
[354688116,1740618638989,-719.53,0.00046575,120]
[354688117,1740618638998,-500.0,0.00046575,120]
[354688118,1740618639007,-500.0,0.00046575,120]
[354688119,1740618639016,-477.86022106,0.00046575,120]
[354688120,1740618639026,-500.0,0.00046575,120]
[354688121,1740618639035,-500.0,0.00046575,120]
[354688122,1740618639044,-500.0,0.00046575,120]
[354688123,1740618639053,-500.0,0.00046575,120]
[354688124,1740618639062,-500.0,0.00046575,120]
[354688125,1740618639071,-500.0,0.00046575,120]
[354688126,1740618639080,-500.0,0.00046575,120]
[354688127,1740618639090,-500.0,0.00046575,120]
[354688128,1740618639099,-500.0,0.00046575,120]
[354688129,1740618639108,-500.0,0.00046575,120]
[354688130,1740618639118,-504.1030797,0.00046575,120]
[354688131,1740618639128,-500.0,0.00046575,120]
[354688132,1740618639138,-500.0,0.00046575,120]
[354688133,1740618639147,-500.0,0.00046575,120]
[354688134,1740618639157,-500.0,0.00046575,120]
[354688135,1740618639166,-500.0,0.00046575,120]
[354688136,1740618639175,-500.0,0.00046575,120]
[354688137,1740618639185,-500.0,0.00046575,120]
[354688138,1740618639194,-500.0,0.00046575,120]
[354688139,1740618639204,-500.0,0.00046575,120]
[354688140,1740618639214,-500.0,0.00046575,120]
[354688141,1740618639223,-500.0,0.00046575,120]
[354688142,1740618639232,-500.0,0.00046575,120]
[354688143,1740618639242,-500.0,0.00046575,120]
[354688144,1740618639251,-500.0,0.00046575,120]
[354688145,1740618639260,-500.0,0.00046575,120]
[354688146,1740618639270,-500.0,0.00046575,30]
[354688147,1740618639279,-205.95320781,0.00046575,120]
[354688148,1740618639289,-500.0,0.00046575,120]
[354688149,1740618639298,-500.0,0.00046575,120]
[354688150,1740618639307,-500.0,0.00046575,120]
[354688152,1740618639317,-500.0,0.00046575,120]
[354688153,1740618639326,-501.15572007,0.00046575,120]
[354688154,1740618639335,-500.0,0.00046575,120]
[354688155,1740618639344,-500.0,0.00046575,120]
[354688156,1740618639353,-500.0,0.00046575,120]
[354688157,1740618639362,-300.0,0.00046575,120]
[354688158,1740618639371,-500.0,0.00046575,120]
[354688159,1740618639380,-536.98,0.00046575,120]
[354688161,1740618639390,-500.0,0.00046575,120]
[354688163,1740618639400,-541.85251682,0.00046575,120]
[354688164,1740618639410,-500.0,0.00046575,120]
[354688165,1740618639419,-500.0,0.00046575,120]
[354688166,1740618639429,-1255.89,0.00046575,120]
[354688167,1740618639438,-500.0,0.00046575,120]
[354688169,1740618639448,-500.0,0.00046575,120]
[354688171,1740618639460,-500.0,0.00046575,120]
[354688173,1740618639469,-500.0,0.00046575,120]
[354688174,1740618639478,-500.0,0.00046575,120]
[354688175,1740618639487,-500.0,0.00046575,120]
[354688176,1740618639496,-500.0,0.00046575,120]
[354688178,1740618639505,-500.0,0.00046575,14]
[354688179,1740618639515,-500.0,0.00046575,120]
[354688180,1740618639524,-1000.0,0.00046575,120]